bitfinex/quotes_ETHUSD_20240601
["timestamp","ask_amount","ask_price","bid_price","bid_amount"]
[1717209054726,2.64988,3773.8,3773.1,0.642]
[1717209057432,2.2949,3773.7,3773.1,0.642]
[1717209058413,2.64999,3773.6,3773.0,0.642]
[1717209061491,2.64999,3773.6,3773.1,2.2898]
[1717209062548,2.4082,3774.0,3773.1,2.2898]
[1717209062549,2.4082,3774.0,3773.2,0.642]
[1717209062685,5.4082,3774.0,3773.2,0.642]
[1717209067936,2.64982,3773.9,3773.2,0.642]
[1717209068240,2.4777,3773.7,3772.8,0.642]
[1717209068541,2.65002,3773.6,3772.8,0.642]
[1717209069043,2.65002,3773.6,3773.0,0.642]
[1717209070380,2.65002,3773.6,3773.0,0.94575]
[1717209072148,3.0,3774.0,3773.2,0.642]
[1717209074431,3.0,3774.0,3773.4,0.642]
[1717209078226,3.0,3774.0,3773.5,2.4153]
[1717209079343,3.0,3774.0,3773.6,0.30573]
[1717209079515,12.24,3775.1,3773.6,0.30573]
[1717209079516,2.2883,3775.1,3774.0,2.4153]
[1717209079710,0.57295853,3775.0,3774.4,0.642]
[1717209080034,2.2883,3775.1,3774.4,0.642]
[1717209080545,2.2883,3775.1,3774.2,0.642]
[1717209081083,4.93728,3775.1,3774.2,0.642]
[1717209081290,4.93728,3775.1,3774.0,3.0573]
[1717209081582,3.0,3775.0,3774.0,0.642]
[1717209081729,3.642,3775.0,3774.0,0.642]
[1717209084124,3.642,3775.0,3773.7,2.4153]
[1717209084125,2.2883,3774.6,3773.7,2.4153]
[1717209084331,2.2883,3774.6,3773.7,3.29883]
[1717209084943,0.1257229,3774.7,3774.5,0.642]
[1717209085143,0.1257229,3774.7,3774.6,2.4153]
[1717209088343,0.1257229,3774.7,3773.9,2.64977]
[1717209088344,0.1257229,3774.7,3774.1,2.4153]
[1717209088583,0.1257229,3774.7,3774.4,0.642]
[1717209089119,0.1257229,3774.7,3774.6,0.642]
[1717209089734,0.1257229,3774.7,3774.6,3.0573]
[1717209099890,0.1257229,3774.7,3774.6,2.4153]
[1717209100124,0.1257229,3774.7,3774.6,3.0573]
[1717209100275,0.1257229,3774.7,3774.6,3.627977]
[1717209100480,0.1257229,3774.7,3774.6,1.212677]
[1717209104932,0.1257229,3774.7,3774.6,3.590877]
[1717209107510,0.1257229,3774.7,3774.6,3.582795]
[1717209112764,0.1257229,3774.7,3774.6,1.204595]
[1717209114816,0.1257229,3774.7,3774.6,0.562595]
[1717209115014,0.1257229,3774.7,3774.6,1.204595]
[1717209124765,0.1257229,3774.7,3774.6,0.562595]
[1717209125008,0.1257229,3774.7,3774.6,1.204595]
[1717209125412,0.1257229,3774.7,3774.6,3.536495]
[1717209127113,0.1257229,3774.7,3774.6,2.894495]
[1717209127317,0.1257229,3774.7,3774.6,3.536495]
[1717209127783,0.1257229,3774.7,3774.6,2.894495]
[1717209127986,0.1257229,3774.7,3774.6,3.536495]
[1717209132521,10.07805,3776.4,3775.2,2.3319]
[1717209132832,2.3297,3776.3,3776.2,0.642]
[1717209134374,2.3297,3776.3,3775.4,2.64871]
[1717209134717,2.3297,3776.3,3776.0,0.642]
[1717209135280,2.2797,3776.3,3776.0,0.642]
[1717209137077,2.2797,3776.3,3775.4,2.64871]
[1717209137226,2.50193786,3779.3,3776.2,0.642]
[1717209137227,3.0,3777.1,3776.2,0.642]
[1717209137434,3.0,3777.1,3776.5,0.642]
[1717209137861,3.0,3777.1,3775.9,2.3319]
[1717209138057,3.0,3777.1,3775.8,2.64839]
[1717209138259,2.377,3777.0,3776.4,0.642]
[1717209138457,2.377,3776.9,3776.4,0.642]
[1717209138667,5.377,3776.9,3776.4,0.642]
[1717209139878,2.377,3776.8,3776.4,0.642]
[1717209140079,5.377,3776.8,3776.2,0.642]
[1717209140438,2.377,3776.8,3776.2,0.642]
[1717209140876,2.67684689,3776.8,3775.8,2.64839]
[1717209141079,2.67684689,3776.8,3776.2,0.642]
[1717209141447,2.377,3776.8,3776.2,0.642]
[1717209142201,2.377,3776.8,3775.8,2.64839]
[1717209142344,2.377,3776.8,3776.3,0.642]
[1717209144361,2.377,3776.8,3776.1,0.642]
[1717209144780,2.377,3776.7,3775.1,10.07887]
[1717209144948,2.377,3776.5,3775.6,0.642]
[1717209145641,2.64807,3776.4,3775.6,0.642]
[1717209145848,2.377,3776.3,3775.6,0.642]
[1717209146868,2.377,3776.3,3775.2,1.03775101]
[1717209147062,2.377,3776.3,3775.5,0.642]
[1717209147663,2.377,3776.3,3775.1,2.64887]
[1717209147962,2.377,3776.3,3775.5,0.642]
[1717209149360,2.377,3776.3,3775.7,0.642]
[1717209150277,2.943707,3776.3,3775.7,0.642]
[1717209152182,2.377,3776.9,3776.2,0.642]
[1717209152386,2.377,3776.9,3775.6,2.4717]
[1717209152591,2.377,3776.9,3776.1,0.642]
[1717209152775,2.377,3776.9,3776.3,0.642]
[1717209154086,2.377,3776.9,3776.5,0.642]
[1717209154295,2.377,3776.9,3776.3,0.642]
[1717209158716,3.179449,3776.9,3775.8,2.6484]
[1717209158873,3.179449,3776.9,3776.1,0.642]
[1717209159801,3.179449,3776.9,3776.3,0.642]
[1717209160005,2.377,3776.9,3775.8,2.6484]
[1717209160208,2.377,3776.9,3776.2,0.642]
[1717209162212,2.377,3776.9,3776.2,3.29012]
[1717209172983,2.377,3776.9,3776.4,0.642]
[1717209174439,2.377,3776.9,3776.4,1.203222]
[1717209177210,2.377,3776.9,3776.6,0.642]
[1717209179425,3.0,3777.4,3776.6,0.642]
[1717209179426,2.3938,3777.4,3776.8,0.642]
[1717209179611,2.3938,3777.4,3776.9,2.64761]
[1717209179811,2.3938,3777.4,3777.0,0.642]
[1717209181067,2.3938,3777.8,3777.0,0.642]
[1717209181273,2.3938,3777.8,3777.1,0.05294613]
[1717209181485,0.1257229,3778.5,3776.9,2.64761]
[1717209181486,0.1257229,3778.5,3777.7,0.642]
[1717209181786,0.1257229,3778.5,3778.4,0.642]
[1717209182281,0.1257229,3778.5,3777.6,5.792]
[1717209182577,0.1257229,3778.5,3778.4,0.642]
[1717209183082,2.9e-06,3778.5,3778.4,8.45322]
[1717209183376,3.0358,3781.1,3779.5,2.64583]
[1717209183377,2.3938,3781.1,3779.5,2.64583]
[1717209183558,3.142,3780.4,3779.5,2.64583]
[1717209183742,2.5,3780.4,3778.9,2.64625]
[1717209183928,0.642,3779.9,3778.9,2.64625]
[1717209184855,5.14527,3780.4,3778.9,2.64625]
[1717209185057,0.642,3780.0,3778.9,2.64625]
[1717209185442,0.642,3780.0,3778.3,2.64667]
[1717209185701,0.55,3779.9,3778.3,4.18067]
[1717209185843,0.55,3780.1,3778.3,4.18067]
[1717209186043,3.55,3780.1,3778.3,4.18067]
[1717209186271,0.67275769,3780.0,3778.4,0.418067]
[1717209186445,2.9438,3779.9,3778.4,0.418067]
[1717209186640,2.64564,3779.8,3778.3,2.64667]
[1717209186861,3.55,3779.7,3778.3,2.64667]
[1717209188379,2.64585,3779.5,3778.3,2.64667]
[1717209188588,0.55,3779.4,3778.3,2.64667]
[1717209188751,0.319585,3779.3,3778.3,2.64667]
[1717209189745,0.319585,3779.3,3777.7,2.64708]
[1717209189947,0.55,3779.2,3777.7,2.64708]
[1717209197705,2.291,3779.0,3777.7,2.64708]
[1717209197911,2.64634,3778.8,3777.7,2.64708]
[1717209199702,0.55,3778.7,3777.1,2.64749]
[1717209200126,2.64649,3778.6,3777.1,2.64749]
[1717209201806,2.64672,3778.3,3777.1,2.64749]
[1717209201996,2.291,3778.5,3776.5,2.64793]
[1717209201997,2.64691,3778.0,3776.5,2.64793]
[1717209202198,0.55,3777.9,3776.5,2.64793]
[1717209202607,0.493772,3778.2,3777.0,2.64759]
[1717209202937,4.93756,3778.5,3777.0,2.64759]
[1717209202938,3.0,3778.4,3777.0,2.64759]
[1717209207573,3.19669,3778.3,3777.0,2.64759]
[1717209210129,3.19669,3778.3,3776.5,2.64792]
[1717209213696,0.64,3777.9,3776.8,0.64]
[1717209213897,0.64,3777.9,3776.8,0.968792]
[1717209214069,3.28701,3777.9,3776.8,0.968792]
[1717209214268,0.64,3777.7,3776.8,0.328792]
[1717209214483,2.2839,3777.6,3776.8,0.328792]
[1717209215453,3.28726,3777.5,3776.0,2.64828]
[1717209215892,2.64726,3777.5,3776.4,0.64]
[1717209216066,0.64,3777.2,3776.0,2.64828]
[1717209216295,0.64,3777.2,3776.1,0.510418]
[1717209216494,0.64,3777.4,3776.4,0.64]
[1717209216858,2.6474,3777.3,3776.1,0.510418]
[1717209217058,2.6474,3777.3,3776.3,0.64]
[1717209217606,0.64,3777.2,3776.0,2.64828]
[1717209217764,2.64755,3777.1,3776.2,0.64]
[1717209219290,2.64755,3777.1,3776.1,0.510418]
[1717209219613,2.64755,3777.1,3776.2,0.64]
[1717209221777,3.28755,3777.1,3776.1,0.510418]
[1717209221962,3.28755,3777.1,3776.0,0.64]
[1717209222809,2.64775,3776.8,3776.0,0.64]
[1717209225513,2.64775,3776.8,3775.8,0.64]
[1717209227412,2.648,3776.5,3775.0,5.64896]
[1717209227617,2.648,3776.5,3775.6,0.64]
[1717209228474,2.648,3776.5,3775.0,2.64896]
[1717209228822,2.648,3776.5,3775.6,0.64]
[1717209231969,2.4151,3776.4,3775.5,0.64]
[1717209232510,2.6481,3776.3,3775.0,2.64896]
[1717209232666,2.6481,3776.3,3775.3,0.64]
[1717209233066,2.6481,3776.3,3775.1,0.529486]
[1717209233297,2.64824,3776.1,3775.1,0.529486]
[1717209233501,2.64824,3776.1,3775.2,0.64]
[1717209233706,2.64824,3776.1,3775.3,0.3818446]
[1717209234574,2.64824,3776.1,3775.0,2.64896]
[1717209234774,2.64824,3776.1,3775.1,0.64]
[1717209234975,2.64824,3776.1,3775.0,2.64896]
[1717209235210,2.64824,3776.1,3775.1,0.64]
[1717209238423,0.64,3776.0,3774.5,5.03022]
[1717209238716,0.64,3776.0,3774.9,0.64]
[1717209238903,2.4656,3775.9,3774.9,0.64]
[1717209240424,2.4656,3775.9,3775.1,0.64]
[1717209240717,2.4656,3775.9,3774.7,2.64916]
[1717209240877,2.4656,3775.9,3775.1,0.64]
[1717209241073,2.4656,3775.9,3774.7,2.64916]
[1717209241279,2.4656,3775.9,3775.0,0.64]
[1717209241776,2.64844,3775.8,3775.0,0.64]
[1717209242117,2.64844,3775.8,3774.8,0.5533082]
[1717209242317,2.64844,3775.8,3774.9,0.64]
[1717209243718,2.64844,3775.8,3774.8,0.5533082]
[1717209243920,2.6487,3775.5,3774.2,5.64952]
[1717209244125,2.6487,3775.5,3774.6,0.64]
[1717209244775,2.6487,3775.5,3774.2,5.64952]
[1717209245175,2.6487,3775.5,3774.6,0.64]
[1717209246819,2.64882,3775.3,3774.5,0.64]
[1717209247275,2.64882,3775.3,3774.4,0.64]
[1717209247477,2.64882,3775.3,3774.3,0.492002]
[1717209247772,2.64882,3775.3,3774.4,0.64]
[1717209247977,2.64882,3775.3,3774.5,0.3781522]
[1717209248536,2.64882,3775.3,3774.5,1.0181522]
[1717209250334,2.64882,3775.3,3774.5,0.3781522]
[1717209251433,2.64882,3775.3,3774.6,0.64]
[1717209254836,2.64882,3775.3,3774.5,0.3781522]
[1717209254980,2.64882,3775.3,3774.6,0.64]
[1717209256827,2.64882,3775.3,3774.5,0.3781522]
[1717209257028,2.64882,3775.3,3774.2,2.64952]
[1717209257229,2.64882,3775.3,3774.4,0.64]
[1717209261673,2.64882,3775.3,3774.5,0.64]
[1717209263181,2.64882,3775.3,3773.7,7.92036]
[1717209263386,2.64882,3775.3,3774.5,0.64]
[1717209267176,2.64882,3775.3,3773.7,7.92036]
[1717209267392,2.64882,3775.3,3774.5,0.64]
[1717209281014,2.64898,3775.1,3774.5,0.64]
[1717209282566,2.64898,3775.1,3774.4,0.64]
[1717209284518,2.64898,3775.1,3773.7,8.20673674]
[1717209284727,2.64898,3775.1,3774.3,0.64]
[1717209285077,2.2532,3774.6,3773.7,0.64]
[1717209285925,2.6494,3774.5,3773.7,0.64]
[1717209288768,2.6494,3774.5,3773.8,0.64]
[1717209290172,2.6494,3774.5,3773.7,0.64]
[1717209295485,2.6494,3774.5,3773.2,2.65021]
[1717209295695,2.64957,3774.2,3773.4,0.64]
[1717209298687,2.64957,3774.2,3773.2,2.65021]
[1717209298855,2.64957,3774.2,3773.3,0.64]
[1717209301578,3.0328,3774.1,3772.8,2.5]
[1717209301788,3.0328,3774.1,3773.0,5.12156]
[1717209301789,2.3928,3774.1,3773.0,5.12156]
[1717209301954,2.3928,3774.1,3773.4,0.64]
[1717209302154,2.3928,3774.1,3773.6,0.64]
[1717209303607,2.3116,3774.5,3773.4,2.65008]
[1717209303897,7.43,3775.1,3774.3,0.64]
[1717209303898,9.7416,3775.1,3774.3,0.64]
[1717209304055,2.3116,3775.1,3774.5,0.64]
[1717209304452,2.3116,3775.1,3774.2,2.64953]
[1717209304654,2.3116,3775.1,3774.4,0.64]
[1717209304870,2.3116,3775.1,3774.2,2.64953]
[1717209305095,2.9516,3775.1,3774.2,2.64953]
[1717209305396,2.3116,3775.1,3774.3,0.64]
[1717209307084,2.3116,3775.1,3773.5,3.057008]
[1717209307085,2.3116,3775.1,3774.7,0.64]
[1717209307285,2.3116,3775.5,3774.9,0.64]
[1717209313714,2.3116,3775.8,3774.9,0.64]
[1717209314274,2.3116,3775.8,3775.1,0.64]
[1717209315002,2.3116,3775.8,3774.9,0.64]
[1717209315209,3.24676,3775.8,3774.8,2.64908]
[1717209315762,2.3116,3775.5,3774.3,2.64947]
[1717209315962,2.3116,3775.5,3774.5,0.64]
[1717209316317,0.64,3775.2,3774.3,2.64947]
[1717209316506,0.64,3775.2,3774.3,2.978417]
[1717209317312,2.3116,3775.1,3773.8,2.3104]
[1717209317511,2.3116,3775.1,3774.1,0.64]
[1717209318567,2.3116,3775.1,3773.7,5.64985]
[1717209318817,2.3116,3775.1,3774.1,0.64]
[1717209318982,5.25573,3775.1,3773.7,5.64985]
[1717209319188,5.25573,3775.1,3774.1,0.64]
[1717209320890,0.64,3775.0,3773.7,5.64985]
[1717209321219,0.589573,3774.9,3774.1,0.64]
[1717209322134,2.2701,3774.8,3774.1,0.64]
[1717209323345,2.64897,3775.1,3774.3,0.64]
[1717209323859,2.2701,3775.2,3774.5,0.64]
[1717209324055,2.2701,3775.2,3774.7,0.64]
[1717209324660,2.64862,3775.6,3774.7,0.64]
[1717209324858,2.2701,3775.5,3774.7,0.64]
[1717209325994,2.2701,3775.5,3774.9,0.64]
[1717209328274,2.2701,3775.9,3774.9,0.64]
[1717209329259,2.2701,3775.9,3774.7,0.328932]
[1717209329260,0.64,3775.8,3774.7,0.64]
[1717209329965,0.64,3775.6,3774.6,0.64]
[1717209330152,0.93101,3775.6,3774.6,0.64]
[1717209330928,0.93101,3775.6,3774.5,2.64932]
[1717209331269,0.93101,3775.6,3774.5,3.28932]
[1717209331973,0.64,3775.4,3774.0,10.07967]
[1717209332176,0.64,3775.4,3774.4,0.64]
[1717209334966,2.9101,3775.5,3774.4,0.64]
[1717209337558,0.29101,3775.6,3774.0,2.64967]
[1717209337559,2.3682,3775.2,3774.0,2.64967]
[1717209337876,2.3682,3775.2,3774.2,0.64]
[1717209337877,3.0082,3775.2,3774.2,0.64]
[1717209338081,3.30902,3775.2,3774.2,0.64]
[1717209338240,3.30902,3775.2,3774.0,2.64967]
[1717209338441,3.30902,3775.2,3774.2,0.64]
[1717209339091,2.64894,3775.1,3774.2,0.64]
[1717209339771,2.64894,3775.1,3774.0,2.64967]
[1717209339972,2.64894,3775.1,3774.0,3.152147]
[1717209340166,2.64894,3775.1,3774.2,0.64]
[1717209342237,2.64894,3775.1,3774.0,3.152147]
[1717209342438,2.64894,3775.1,3774.3,0.64]
[1717209348619,2.3682,3775.0,3774.3,0.64]
[1717209348785,2.3682,3775.0,3774.1,0.64]
[1717209350198,2.3682,3775.0,3774.1,1.0192147]
[1717209360456,2.3682,3775.0,3774.3,0.64]
[1717209360660,2.3682,3775.0,3774.1,0.3792147]
[1717209360861,2.3682,3775.0,3774.2,0.64]
[1717209361798,2.3682,3775.0,3774.0,3.28967]
[1717209362924,2.3682,3775.0,3774.0,2.64967]
[1717209363117,2.933914,3775.0,3774.0,3.28967]
[1717209367620,2.933914,3775.0,3774.0,2.64967]
[1717209367820,2.3682,3775.0,3774.2,0.64]
[1717209370128,2.3682,3775.0,3774.0,2.64967]
[1717209370129,2.3682,3775.0,3774.4,0.64]
[1717209373439,2.3682,3775.0,3774.2,0.64]
[1717209379886,2.3682,3775.0,3774.3,2.64948]
[1717209380081,2.3682,3775.0,3774.6,0.64]
[1717209380282,2.4915,3775.5,3774.8,0.64]
[1717209383583,8.13978,3776.1,3774.9,0.05297776]
[1717209383754,8.13978,3776.1,3775.2,0.64]
[1717209384148,5.13978,3776.1,3775.2,0.64]
[1717209388490,0.64,3776.0,3774.9,2.64903]
[1717209388769,0.64,3776.0,3775.0,0.904903]
[1717209389841,3.0,3776.5,3774.4,10.0794]
[1717209389842,0.64,3775.8,3774.4,10.0794]
[1717209390041,0.64,3775.6,3774.6,0.64]
[1717209390239,0.64,3775.6,3774.7,0.32894]
[1717209390482,0.64,3775.6,3774.6,0.64]
[1717209392440,3.1315,3775.8,3774.6,0.64]
[1717209394578,2.64853,3775.7,3774.7,0.64]
[1717209396195,2.4915,3775.6,3774.7,0.64]
[1717209396782,2.64865,3775.5,3774.4,2.6494]
[1717209397007,2.4915,3775.3,3774.4,3.2894]
[1717209401907,2.4915,3775.3,3774.4,2.6494]
[1717209402209,2.4915,3775.3,3774.5,0.64]
[1717209403004,2.93725948,3775.3,3774.5,0.64]
[1717209403838,2.64887,3775.2,3773.9,2.64975]
[1717209403964,2.64887,3775.2,3773.6,7.43]
[1717209403965,0.64,3774.7,3773.6,0.64]
[1717209404469,0.64,3774.7,3773.8,0.64]
[1717209404784,2.3387,3774.6,3773.6,0.64]
[1717209405731,2.3387,3774.6,3773.7,0.64]
[1717209406070,2.64917,3774.8,3773.7,0.64]
[1717209406309,2.914087,3774.8,3773.7,0.64]
[1717209406474,2.3387,3774.7,3773.5,0.4968]
[1717209406695,2.3387,3774.7,3773.8,0.64]
[1717209408425,2.3387,3774.7,3773.5,0.4968]
[1717209408575,2.3387,3774.7,3773.7,0.64]
[1717209408770,2.9279787,3774.7,3773.7,0.64]
[1717209410423,2.3387,3774.7,3773.7,0.64]
[1717209411373,2.3387,3774.7,3773.7,2.6499]
[1717209411578,2.3387,3774.7,3774.0,0.64]
[1717209418439,0.44575948,3775.3,3773.5,0.4968]
[1717209418440,2.4927,3775.1,3774.6,0.64]
[1717209419132,2.64882,3775.3,3774.6,0.64]
[1717209420548,2.4927,3775.4,3774.8,0.64]
[1717209421446,5.14117,3775.8,3774.8,2.3721]
[1717209421665,5.14117,3775.8,3774.9,0.64]
[1717209421942,2.4927,3775.8,3775.0,2.64897]
[1717209422290,5.15797,3775.8,3775.0,2.64897]
[1717209423140,2.4927,3775.7,3774.6,0.64]
[1717209423442,3.1327,3775.4,3774.5,2.64931]
[1717209423588,0.633138,3775.3,3774.5,2.64931]
[1717209423791,2.4927,3775.4,3774.5,3.28931]
[1717209426406,2.4927,3775.4,3774.5,2.64931]
[1717209426605,2.4927,3775.4,3774.5,3.28931]
[1717209429936,2.4927,3775.4,3774.5,2.64931]
[1717209429937,3.070838,3775.4,3774.5,2.64931]
[1717209430653,0.64,3775.3,3774.5,2.64931]
[1717209430854,0.64,3775.3,3774.0,5.02176]
[1717209430855,2.4927,3775.2,3774.0,5.02176]
[1717209431085,2.4927,3775.2,3774.3,0.64]
[1717209431226,3.1286518,3775.2,3774.0,2.64966]
[1717209431411,3.1286518,3775.2,3774.2,0.64]
[1717209431620,2.4927,3775.2,3774.2,0.64]
[1717209432135,3.1327,3775.2,3774.2,0.64]
[1717209432334,2.4927,3775.1,3774.0,2.64966]
[1717209432742,2.4927,3775.1,3774.0,3.28966]
[1717209433110,2.4927,3775.1,3774.0,3.855836]
[1717209433954,0.64,3775.0,3774.0,3.855836]
[1717209436292,2.4927,3775.1,3774.0,3.855836]
[1717209438626,2.3115,3775.0,3774.0,3.215836]
[1717209438923,2.64909,3774.9,3774.0,0.64]
[1717209439067,2.64909,3774.9,3773.5,3.14681]
[1717209439068,2.3115,3774.8,3773.5,3.14681]
[1717209439270,2.3115,3774.8,3773.9,0.64]
[1717209439572,2.3115,3774.6,3773.5,3.14681]
[1717209440102,2.3115,3774.6,3773.9,0.64]
[1717209440685,2.3115,3774.6,3773.5,3.14681]
[1717209440886,2.3115,3774.6,3773.8,0.64]
[1717209441336,2.9211649,3774.6,3773.5,2.65001]
[1717209441474,2.3115,3774.5,3773.6,0.64]
[1717209442824,2.3115,3774.4,3773.5,3.29001]
[1717209442976,2.3115,3774.4,3773.5,0.64]
[1717209443177,0.62105749,3774.3,3773.5,0.64]
[1717209443936,2.3115,3774.2,3773.0,2.65039]
[1717209444152,2.3115,3774.2,3773.4,0.64]
[1717209445101,2.3115,3774.2,3773.0,2.65039]
[1717209445301,2.3115,3774.2,3773.5,0.64]
[1717209445748,2.3115,3774.2,3773.0,2.65039]
[1717209446040,2.3115,3774.2,3773.3,0.64]
[1717209448412,2.3115,3774.2,3773.1,0.490229]
[1717209448738,2.3115,3774.2,3773.4,0.64]
[1717209450247,2.3115,3774.2,3773.1,0.490229]
[1717209450401,2.3115,3774.2,3773.3,0.64]
[1717209452449,2.64964,3774.1,3773.1,0.490229]
[1717209452745,2.3115,3774.0,3773.2,0.64]
[1717209455754,2.3115,3774.0,3773.3,0.64]
[1717209462079,2.3696,3774.8,3773.6,2.64992]
[1717209462229,2.3696,3774.8,3773.8,0.64]
[1717209473606,2.3696,3774.8,3773.9,2.2795]
[1717209473757,2.3696,3774.8,3774.0,3.28968]
[1717209474108,2.64898,3775.1,3774.0,3.28968]
[1717209474109,5.66048,3775.1,3774.0,3.28968]
[1717209477611,5.66048,3775.1,3774.0,2.64968]
[1717209477818,0.566048,3775.0,3774.0,3.28968]
[1717209478180,0.64,3774.9,3774.0,3.28968]
[1717209478881,3.0,3775.4,3774.8,0.64]
[1717209479096,3.0,3775.6,3774.9,2.3145]
[1717209479442,3.0,3775.6,3774.9,2.9545]
[1717209479443,3.44191098,3775.6,3774.9,2.9545]
[1717209479739,2.64853,3775.7,3774.9,2.9545]
[1717209482116,21.4,3776.0,3774.9,2.9545]
[1717209482296,3.0,3775.9,3774.9,2.9545]
[1717209482487,3.64,3775.9,3774.9,2.9545]
[1717209486498,3.0,3775.9,3774.9,2.9545]
[1717209487102,4.20094324,3775.9,3774.9,2.9545]
[1717209493075,4.20094324,3775.9,3774.9,2.3145]
[1717209493383,4.20094324,3775.9,3774.9,2.9545]
[1717209495979,4.20094324,3775.9,3774.9,2.3145]
[1717209497356,3.0,3775.9,3775.0,0.64]
[1717209502827,3.0,3775.9,3774.9,2.3145]
[1717209503629,0.64,3775.8,3774.9,2.3145]
[1717209504933,3.28846,3775.8,3774.9,2.3145]
[1717209505144,2.404846,3775.7,3774.9,2.3145]
[1717209513113,5.6032,3775.6,3774.9,2.3145]
[1717209513439,5.6032,3775.6,3774.6,2.9245]
[1717209519491,5.6032,3775.6,3774.6,2.2845]
[1717209519842,5.6032,3775.6,3774.6,2.9245]
[1717209520044,0.8008046,3775.5,3774.6,2.9245]
[1717209521017,2.64875,3775.4,3774.6,0.64]
[1717209521909,3.28888,3775.2,3774.3,2.4859]
[1717209523651,2.64901,3775.0,3773.9,2.4859]
[1717209523821,0.560761,3774.9,3774.1,0.64]
[1717209526128,0.560761,3774.9,3773.9,2.4859]
[1717209526345,3.28901,3775.0,3774.1,0.64]
[1717209527410,2.64863,3775.6,3774.4,0.64]
[1717209527619,12.56293614,3776.8,3774.5,2.4859]
[1717209527620,4.96733,3775.4,3774.5,2.4859]
[1717209527827,6.06183036,3775.4,3774.5,2.4859]
[1717209528041,4.96733,3775.4,3774.5,2.4859]
[1717209528249,2.64873,3775.4,3774.6,0.64]
[1717209531061,2.3186,3775.6,3774.6,0.64]
[1717209531604,0.64,3775.7,3774.6,0.64]
[1717209531765,0.64,3775.7,3774.6,1.217522]
[1717209537545,3.0,3775.8,3774.7,2.419]
[1717209537906,0.64,3775.7,3774.7,2.419]
[1717209538475,0.64,3775.7,3774.8,0.64]
[1717209540691,3.0,3775.8,3774.8,1.2685842]
[1717209542142,5.60701,3775.9,3774.8,1.2685842]
[1717209542384,5.60701,3775.9,3774.9,2.419]
[1717209542590,5.60701,3775.9,3774.9,3.059]
[1717209543248,7.17517532,3775.9,3774.9,3.059]
[1717209543949,4.85657532,3775.9,3774.9,3.059]
[1717209544761,4.21657532,3775.9,3774.9,3.059]
[1717209546481,4.21657532,3775.9,3774.9,2.419]
[1717209546662,4.21657532,3775.9,3774.9,3.059]
[1717209550107,4.21657532,3775.9,3775.0,2.419]
[1717209554674,4.21657532,3775.9,3775.2,2.419]
[1717209557134,17.76,3776.0,3775.2,2.419]
[1717209557337,17.76,3776.0,3775.6,0.64]
[1717209557732,17.76,3776.0,3775.4,3.059]
[1717209559096,17.76,3776.0,3775.5,2.64865]
[1717209561845,17.76,3776.0,3775.2,0.64]
[1717209562055,17.76,3776.0,3775.3,2.3881]
[1717209565741,19.83703,3776.0,3775.3,2.3881]
[1717209566450,17.76,3776.0,3775.4,0.64]
[1717209567531,17.66,3776.0,3775.4,0.64]
[1717209576267,17.66,3776.0,3775.3,2.3881]
[1717209578455,17.66,3776.0,3774.9,5.09502]
[1717209578631,2.4165,3775.9,3775.2,0.64]
[1717209584358,2.4165,3775.9,3775.0,0.509502]
[1717209584678,2.4165,3775.9,3775.2,0.64]
[1717209591917,2.4165,3775.9,3775.1,0.64]
[1717209594479,2.00765,3775.8,3774.9,2.64902]
[1717209594780,20.30831,3776.0,3774.9,2.64902]
[1717209594781,2.4165,3775.7,3775.0,0.64]
[1717209597091,2.4165,3775.7,3774.9,2.64902]
[1717209597253,2.4165,3775.7,3775.0,0.64]
[1717209597453,2.4165,3775.7,3774.9,2.64902]
[1717209597454,2.4165,3775.6,3774.4,2.64936]
[1717209597686,2.4165,3775.6,3774.8,0.64]
[1717209599188,2.4165,3775.6,3774.4,2.64936]
[1717209599366,2.4165,3775.6,3774.7,0.64]
[1717209601179,2.3397,3775.1,3774.2,0.64]
[1717209601802,2.3397,3775.1,3774.4,0.64]
[1717209603289,2.3397,3775.1,3774.2,0.64]
[1717209605311,2.3397,3775.1,3774.4,0.64]
[1717209605679,2.3397,3775.5,3774.5,2.3675]
[1717209606001,5.3397,3775.5,3774.8,0.64]
[1717209606404,2.3397,3775.5,3774.8,0.64]
[1717209611517,2.64854,3775.7,3774.8,0.64]
[1717209611667,2.64854,3775.7,3774.9,0.328918]
[1717209612611,2.3397,3775.8,3774.9,0.328918]
[1717209616614,2.3397,3775.8,3775.0,2.3675]
[1717209617518,2.9797,3775.8,3775.0,2.3675]
[1717209618990,2.9797,3775.8,3774.9,0.328918]
[1717209619377,2.9797,3775.8,3774.8,3.0036]
[1717209620335,2.9797,3775.8,3774.7,2.64918]
[1717209620336,2.4398,3775.7,3774.7,2.64918]
[1717209620651,2.4398,3775.5,3774.5,0.64]
[1717209620847,0.64,3775.6,3774.5,0.64]
[1717209620848,2.4398,3775.3,3774.5,0.64]